[Event "13th Rheinland-Pfalz-Open 2023"]
[Site "Neuwied-Engers"]
[Date "2023.06.08"]
[Round "2.5"]
[White "Goldmann, David"]
[Black "Boidman, Yuri"]
[Result "1/2-1/2"]
[Annotator "TA"]
[ECO "B01"]
[WhiteElo "1895"]
[BlackElo "2304"]
[PlyCount "132"]
[EventDate "2023.01.12"]
[EventType "swiss"]
[EventCountry "GER"]
[SourceTitle "playchess.com"]
[Source "ChessBase"]
[SourceQuality "1"]
[TimeControl "40/5400+30:1800+30"]

{[%evp 10,132,16,12,38,19,35,27,35,0,0,-7,-3,0,0,0,0,3,6,16,40,17,44,4,4,-10,0,-8,-12,-27,0,-8,0,0,27,16,135,137,141,139,140,143,173,175,166,170,153,148,185,186,193,193,193,180,170,149,186,133,141,127,146,97,76,73,146,146,146,130,137,129,121,121,125,127,148,99,106,47,47,18,18,18,18,18,18,9,18,9,9,0,18,18,18,0,9,0,9,9,10,10,17,17,17,0,18,0,18,18,18,0,0,0,0,0,0,0,0,0,0,0,0,0,0,0,0]} 1. e4 {[%emt 0:00:04]} d5 {[%emt 0:00:13]} 2. exd5 {[%emt 0:00:07]} Nf6 {[%emt 0:00:06]} 3. d4 {[%emt 0:00:08]} Bg4 {[%emt 0:00:07]} 4. Be2 {[%emt 0:00:08]} Bxe2 {[%emt 0:00:08]} 5. Nxe2 {[%emt 0:00:03]} Qxd5 {[%emt 0:00:12]} 6. O-O {[%emt 0:00:24]} e6 {[%emt 0:00:05] B01: Scandinavian Defence.} 7. Bf4 {[%emt 0:00:41]} c5 {[%emt 0:02:58]} 8. Nbc3 {[%emt 0:00:47]} Qd7 {[%emt 0:00:18] [#] White has an edge.} 9. Qd3 $146 {[%emt 0:01:55]} ({Predecessor:} 9. dxc5 Bxc5 10. Qxd7+ Nbxd7 11. Na4 Nd5 12. Bd2 Be7 13. c4 N5b6 14. Nxb6 Nxb6 15. b3 {1-0 Janetschek,K (2280)-Woeber,F (2165) AUT-chT 0001 2000 (5.5)}) 9... Nc6 {[%emt 0:01:58][%cal Rc5d4]} 10. Rad1 {[%emt 0:01:54]} cxd4 {[%emt 0:06:29]} 11. Nxd4 {[%emt 0:00:55]} Nxd4 {[%emt 0:01:14]} 12. Qxd4 {[%emt 0:00:12]} Qxd4 {[%emt 0:00:30]} 13. Rxd4 {[%emt 0:00:00]} Bc5 {[%emt 0:00:45]} 14. Rc4 {[%emt 0:01:43]} Bb6 {[%emt 0:03:23]} 15. Bd6 {[%emt 0:04:32][%cal Bf4d6,Bd6a3,Ba3c5][%mdl 32]} Rd8 {[%emt 0:02:13]} 16. Ba3 {[%emt 0:00:29]} a6 {[%emt 0:05:35] Repels Nb5} 17. Rd1 {[%emt 0:07:42]} Rxd1+ {[%emt 0:02:30]} 18. Nxd1 {[%emt 0:00:01]} Kd7 {[%emt 0:00:58] Wards off Rc8} 19. Nc3 {[%emt 0:01:08]} Rd8 {[%emt 0:02:29]} 20. Kf1 {[%emt 0:02:58]} Ba7 {[%emt 0:01:56]} 21. Bc5 {[%emt 0:07:47]} b6 {[%emt 0:10:42]} 22. Bd4 {[%emt 0:00:57]} Ne8 {[%emt 0:03:37]} (22... b5 $11 {keeps the balance.}) 23. Ra4 $1 $16 {[%emt 0:02:07] White is more active.} Kc6 {[%emt 0:08:34]} 24. Rxa6 {[%emt 0:04:19]} Rxd4 {[%emt 0:00:22]} 25. Rxa7 {[%emt 0:00:04][%mdl 4096] Endgame KRN-KRN} Rd2 {[%emt 0:03:59]} 26. Rxf7 {[%emt 0:00:12]} Rxc2 {[%emt 0:00:36]} 27. Nd1 {[%emt 0:00:09]} Kd6 {[%emt 0:02:36]} 28. h4 {[%emt 0:01:20]} h5 {[%emt 0:00:36]} 29. Rb7 {[%emt 0:00:52]} Rc6 {[%emt 0:04:35]} 30. Nc3 {[%emt 0:01:04]} Nc7 {[%emt 0:00:44]} 31. f3 {[%emt 0:00:46]} g6 {[%emt 0:00:48]} 32. Ke2 {[%emt 0:01:10]} Nd5 {[%emt 0:04:07]} 33. Kd2 {[%emt 0:00:38]} (33. Nxd5 $18 Kxd5 34. Kd3) 33... Nxc3 {[%emt 0:02:44]} 34. bxc3 {[%emt 0:00:01] KR-KR} Kc5 {[%emt 0:00:14]} 35. f4 {[%emt 0:01:04]} (35. a4 $142) 35... e5 {[%emt 0:02:36]} 36. fxe5 {[%emt 1:00:09]} Re6 {[%emt 0:00:12]} (36... Kd5 $142) 37. Rg7 {[%emt 0:00:00]} Kd5 {[%emt 0:00:10]} 38. Rd7+ {[%emt 0:00:00]} Kxe5 {[%emt 0:00:31] [#]} 39. Rd4 {[%emt 0:00:00]} Rf6 {[%emt 0:01:09]} 40. Ke2 {[%emt 0:00:00] Wards off Rf2+} Rc6 {[%emt 0:01:16] [#]} 41. Kd3 {[%emt 0:00:00]} Rf6 {[%emt 0:30:48]} 42. Re4+ {[%emt 0:00:00]} (42. a4 $142) 42... Kd6 {[%emt 0:01:23]} 43. g4 {[%emt 0:00:00]} ({White should try} 43. Ke3 $16) 43... Rf2 $1 $14 {[%emt 0:02:02]} 44. gxh5 {[%emt 0:00:00]} gxh5 {[%emt 0:00:11] The position is equal.} 45. a4 {[%emt 0:00:00]} Rh2 {[%emt 0:00:24]} 46. Kc4 {[%emt 0:00:00] aiming for Kb5.} Kc6 {[%emt 0:00:26]} 47. Rf4 {[%emt 0:00:00]} Rh1 {[%emt 0:01:35]} 48. Kd4 {[%emt 0:00:00]} Kd6 {[%emt 0:01:52]} 49. Kc4 {[%emt 0:00:00] Kb5 is the strong threat.} Kc6 {[%emt 0:00:16]} 50. Rf6+ {[%emt 0:00:00]} Kb7 $1 {[%emt 0:00:16]} 51. Kb5 {[%emt 0:00:00]} Rb1+ $1 {[%emt 0:00:24]} 52. Kc4 {[%emt 0:00:00] Hoping for Rh6.} Ra1 {[%emt 0:01:10]} 53. Kb3 {[%emt 0:00:00] Black must now prevent Rf5.} Rb1+ {[%emt 0:00:18]} 54. Kc2 {[%emt 0:00:00]} Rh1 {[%emt 0:00:56]} 55. Rf4 {[%emt 0:00:00]} Ka6 {[%emt 0:00:44]} 56. Kd3 {[%emt 0:00:00]} Ka5 {[%emt 0:02:56]} 57. Kc2 {[%emt 0:00:00]} Ka6 {[%emt 0:01:32]} 58. Kb3 {[%emt 0:00:00]} Rh2 {[%emt 0:01:15]} 59. Kc4 {[%emt 0:00:00]} Ka5 {[%emt 0:01:04]} 60. Rf5+ {[%emt 0:00:00]} Kxa4 {[%emt 0:00:17]} 61. Rxh5 {[%emt 0:00:00]} b5+ {[%emt 0:01:52]} 62. Kc5 {[%emt 0:00:00]} (62. Rxb5 {is a self mate.} Rxh4+ 63. Kc5 Rh5+ 64. Kc4 Rxb5 65. Kd4 Rg5 66. Ke4 Kb3 67. Kd4 Rh5 68. c4 Kb4 69. Ke3 Kxc4 70. Ke4 Kc3 71. Kf4 Kd3 72. Kg4 Rd5 73. Kf4 Rb5 74. Kg3 Ke3 75. Kg4 Rc5 76. Kg3 Rg5+ 77. Kh4 Kf4 78. Kh3 Kf3 79. Kh2 Rh5+ 80. Kg1 Rh8 81. Kf1 Rh1#) 62... Rc2 {[%emt 0:08:32]} 63. Kb6 {[%emt 0:00:00]} Rh2 {[%emt 0:05:24]} 64. Rxb5 {[%emt 0:00:00] c4 would be deadly.} Rxh4 {[%emt 0:02:38] ( -> ...Rh6+)} 65. Rb4+ Rxb4+ {[%emt 0:00:00]} 66. cxb4 {[%emt 0:00:00]} Kxb4 {[%emt 0:00:00] White really could win this.   Weighted Error Value: White=0.10 (very precise) /Black=0.09 (flawless)} 1/2-1/2

[Event "13th Rheinland-Pfalz-Open 2023"]
[Site "Neuwied-Engers"]
[Date "2023.06.08"]
[Round "2.6"]
[White "Syrov, Arkadi"]
[Black "Pauly, Markus"]
[Result "1-0"]
[Annotator "TA"]
[ECO "A43"]
[WhiteElo "2298"]
[BlackElo "1888"]
[PlyCount "47"]
[EventDate "2023.01.12"]
[EventType "swiss"]
[EventCountry "GER"]
[SourceTitle "playchess.com"]
[Source "ChessBase"]
[SourceQuality "1"]
[TimeControl "40/5400+30:1800+30"]

{[%evp 12,46,59,47,53,68,56,55,58,64,60,57,99,106,110,101,114,78,90,66,195,188,427,438,1129,1129,1161,1131,29994,29995,29995,29996,29997,29995,29998,29999,29999]} 1. d4 {[%emt 0:00:03]} g6 {[%emt 0:00:13]} 2. e4 {[%emt 0:00:10]} Bg7 {[%emt 0:00:09]} 3. Nc3 {[%emt 0:00:07]} c5 {[%emt 0:00:31]} 4. d5 {[%emt 0:00:22]} d6 {[%emt 0:02:02]} 5. f4 {[%emt 0:02:12]} Nf6 {[%emt 0:01:57]} 6. Bb5+ {[%emt 0:00:20]} Nfd7 {[%emt 0:03:26]} 7. a4 {[%emt 0:01:13] Black is weak on the light squares} a6 {[%emt 0:00:54] A43: Schmid Benoni.} 8. Bd3 {[%emt 0:01:09]} O-O {[%emt 0:02:22]} 9. Nf3 {[%emt 0:01:32]} Nf6 {[%emt 0:01:06] White is slightly better.} 10. O-O {[%emt 0:00:23]} e6 {[%emt 0:03:32]} 11. dxe6 $1 {[%emt 0:02:35] [#]} Bxe6 $146 {[%emt 0:02:35]} ({Predecessor:} 11... fxe6 12. Qe1 Nc6 13. e5 dxe5 14. fxe5 Ng4 15. Bg5 Qb6 16. a5 Qc7 17. Qh4 Ngxe5 18. Nxe5 Nxe5 19. Rxf8+ Bxf8 {1-0 Cherniaev,A (2397)-Birtwistle,N (2110) BCF-chT 2122 (4NCL) 2021 (2.121)}) 12. f5 {[%emt 0:00:39]} gxf5 {[%emt 0:10:59]} 13. exf5 {[%emt 0:03:54]} Bd7 {[%emt 0:00:16]} 14. Bg5 {[%emt 0:02:10]} Bc6 {[%emt 0:01:46]} 15. Bc4 {[%emt 0:10:52] White is more active.} Qd7 {[%emt 0:14:19] This costs Black the game.} (15... h6 $14 16. Bh4 Re8) 16. Qd2 $18 {[%emt 0:07:34]} Bxf3 $2 {[%emt 0:10:28]} (16... d5) 17. Rxf3 {[%emt 0:01:56]} ({Weaker is} 17. gxf3 Qxf5 18. Bd3 Qh3 $14) 17... Nc6 {[%emt 0:00:09]} (17... Qd8 $142 18. Rd3 Nbd7 19. Rxd6 Qc7) 18. Bxf6 {[%emt 0:05:17][%mdl 64] [#] Deflection} Bxf6 {[%emt 0:00:23]} 19. Qh6 {[%emt 0:00:09] Rg3+ would kill now.} Be5 {[%emt 0:07:54] Repels Rg3+} 20. f6 {[%emt 0:05:56][%csl Gf6][%cal Rh6g7] White mates.} Qg4 {[%emt 0:01:03]} 21. Bd3 {[%emt 0:00:12][%csl Gd3][%cal Rh6h7,Bc4d3,Bd3h7,Bh7g6][%mdl 32]} Rfd8 {[%emt 0:05:32]} 22. Bxh7+ {[%emt 0:00:10]} Kh8 {[%emt 0:00:10]} 23. Bg6+ {[%emt 0:00:04][%mdl 64] [#] Discovered Attack} Kg8 {[%emt 0:00:08]} 24. Qg7# {[%emt 0:00:05] A cool game by Syrov.   Weighted Error Value: White=0.05 (flawless) /Black=0.83} 1-0

[Event "13th Rheinland-Pfalz-Open 2023"]
[Site "Neuwied-Engers"]
[Date "2023.06.08"]
[Round "2.7"]
[White "Goldenstein, Arnd"]
[Black "Weber, Samuel"]
[Result "0-1"]
[Annotator "TA"]
[ECO "B38"]
[WhiteElo "1894"]
[BlackElo "2296"]
[PlyCount "95"]
[EventDate "2023.01.12"]
[EventType "swiss"]
[EventCountry "GER"]
[SourceTitle "playchess.com"]
[Source "ChessBase"]
[SourceQuality "1"]
[TimeControl "40/5400+30:1800+30"]

{[%evp 21,95,30,35,29,28,23,25,20,57,47,39,0,27,21,36,39,38,8,28,42,39,-3,-2,-2,19,-10,-5,0,0,-5,45,0,-9,-33,-31,-42,0,0,0,-45,-37,-47,-62,-33,-46,-100,-54,-99,-93,-93,-96,-106,-109,-269,-293,-263,-271,-458,-470,-663,-646,-639,-600,-893,-917,-820,-752,-747,-731,-679,-679,-4147,-639,-4112,-3522,-29982]} 1. d4 {[%emt 0:00:03]} Nf6 {[%emt 0:03:43]} 2. c4 {[%emt 0:00:05]} g6 {[%emt 0:00:11]} 3. Nc3 {[%emt 0:00:13]} Bg7 {[%emt 0:00:08]} 4. e4 {[%emt 0:00:14]} d6 {[%emt 0:00:12]} 5. Nf3 {[%emt 0:00:15]} O-O {[%emt 0:00:07]} 6. Be2 {[%emt 0:00:04]} c5 {[%emt 0:00:09]} 7. O-O {[%emt 0:07:19]} cxd4 {[%emt 0:01:55]} 8. Nxd4 {[%emt 0:00:04]} Nc6 {[%emt 0:00:11]} 9. Be3 {[%emt 0:00:32]} Bd7 {[%emt 0:01:11]} 10. h3 {[%emt 0:13:17]} Nxd4 {[%emt 0:02:17]} 11. Bxd4 {[%emt 0:00:08]} Bc6 {[%emt 0:00:04]} 12. Bf3 {[%emt 0:14:25] B38: Sicilian: Maroczy Bind with 5...Bg7 and 7...0-0.} a5 {[%emt 0:08:13]} 13. Qd2 {[%emt 0:04:21]} Nd7 {[%emt 0:00:22] [#]} 14. Rfe1 $146 {[%emt 0:05:49] White has an edge.} ({Predecessor:} 14. Bxg7 Kxg7 15. b3 Qb6 16. Nd5 Bxd5 17. exd5 Qb4 18. Qb2+ Kg8 19. a3 Qb6 20. Rfe1 {½-½ Romanov,E (2619)-Ivanchuk,V (2713) EU-ch 19th Batumi 2018 (3)}) 14... f5 {[%emt 0:04:49]} 15. Bxg7 {[%emt 0:09:11]} Kxg7 {[%emt 0:01:42]} 16. Qd4+ {[%emt 0:02:59]} Kg8 {[%emt 0:03:07]} 17. Bd1 {[%emt 0:04:06]} f4 {[%emt 0:06:19]} 18. Bg4 {[%emt 0:07:18] Be6+ is the strong threat.} Ne5 {[%emt 0:00:05]} 19. c5 {[%emt 0:00:21]} h5 {[%emt 0:08:03]} 20. Be6+ {[%emt 0:01:13]} Kh7 {[%emt 0:00:11]} 21. f3 {[%emt 0:05:16]} Rf6 $1 {[%emt 0:00:54]} 22. Bb3 {[%emt 0:01:04] [#]} a4 $1 {[%emt 0:01:47]} 23. Bd5 {[%emt 0:05:13]} (23. Bxa4 Bxa4) 23... Qa5 {[%emt 0:01:29]} 24. cxd6 {[%emt 0:00:45]} exd6 {[%emt 0:00:09]} 25. Rac1 {[%emt 0:03:09]} Bd7 {[%emt 0:02:44]} (25... g5 $11) 26. Ne2 {[%emt 0:01:28]} (26. Rf1 $14) 26... Bxh3 $11 {[%emt 0:01:29][%mdl 64] [#] Deflection} 27. Rc3 {[%emt 0:00:44]} Bd7 {[%emt 0:01:13]} 28. Rec1 {[%emt 0:00:26]} (28. Bxb7 $2 {too greedy.} Rb8 29. Bd5 Rxb2 $19) 28... Qb5 {[%emt 0:03:00]} 29. Qd2 {[%emt 0:01:38]} Qb6+ {[%emt 0:02:11]} 30. Kh1 {[%emt 0:00:49]} Qf2 {[%emt 0:01:26]} 31. Qe1 {[%emt 0:02:38]} ({Much weaker is} 31. Bxb7 Rb8 32. Rc7 Kh6 $17) 31... Qxe1+ {[%emt 0:03:37]} 32. Rxe1 {[%emt 0:00:04]} Bc6 {[%emt 0:00:35]} 33. Rec1 {[%emt 0:02:27]} (33. Nd4 $15) 33... Ra5 {[%emt 0:07:40]} (33... g5 $17) 34. b4 {[%emt 0:06:06]} axb3 {[%emt 0:02:28]} 35. Bxb3 {[%emt 0:00:07]} g5 {[%emt 0:06:51][%cal Bg6g5,Bg5g4][%mdl 32] Black is more active.} 36. Nd4 {[%emt 0:01:34]} g4 {[%emt 0:00:12]} 37. Bd5 $2 {[%emt 0:00:34] This costs White the game.} Bxd5 $19 {[%emt 0:00:49]} 38. exd5 {[%emt 0:00:10]} Rxd5 {[%emt 0:00:19]} (38... Rxa2 $2 {is the wrong capture.} 39. Rd1 $19) 39. Rc7+ $2 {[%emt 0:00:05]} (39. Rd1) 39... Kg6 {[%emt 0:00:16] Black is clearly winning.} 40. Nb3 {[%emt 0:01:09]} (40. Ne2 $142) 40... gxf3 {[%emt 0:00:52]} 41. gxf3 {[%emt 0:30:10]} Nxf3 {[%emt 0:30:25]} 42. Rxb7 {[%emt 0:00:20]} Ne5 {[%emt 0:00:31]} 43. Rb4 {[%emt 0:00:17]} Rd3 {[%emt 0:01:29]} 44. Rf1 {[%emt 0:01:03]} Rh3+ {[%emt 0:00:12]} 45. Kg2 {[%emt 0:00:08]} Rg3+ {[%emt 0:00:04]} 46. Kh2 {[%emt 0:00:06]} Ng4+ {[%emt 0:00:03]} 47. Kh1 {[%emt 0:00:10]} f3 {[%emt 0:02:05] ( -> ...Ne3)} 48. Nc1 {[%emt 0:01:11] Weighted Error Value: White=0.53/Black=0.10 (very precise)} 0-1

[Event "13th Rheinland-Pfalz-Open 2023"]
[Site "Neuwied-Engers"]
[Date "2023.06.08"]
[Round "2.8"]
[White "Stillger, Bernhard"]
[Black "Minkovitch, Michael"]
[Result "1-0"]
[Annotator "TA"]
[ECO "A11"]
[WhiteElo "2289"]
[BlackElo "1876"]
[PlyCount "63"]
[EventDate "2023.01.12"]
[EventType "swiss"]
[EventCountry "GER"]
[SourceTitle "playchess.com"]
[Source "ChessBase"]
[SourceQuality "1"]
[TimeControl "40/5400+30:1800+30"]

{[%evp 14,63,23,33,64,28,39,26,38,36,39,33,46,33,58,47,49,45,64,59,102,84,91,93,114,107,112,73,185,177,171,169,302,289,383,216,227,122,137,129,213,192,218,227,1362,1408,1398,1381,1553,1002,799,-442]} 1. Nf3 {[%emt 0:00:04]} d5 {[%emt 0:00:51]} 2. g3 {[%emt 0:01:01]} Nf6 {[%emt 0:02:09]} 3. Bg2 {[%emt 0:00:37]} g6 {[%emt 0:00:50]} 4. c4 {[%emt 0:02:26]} c6 {[%emt 0:02:36]} 5. b3 {[%emt 0:01:48]} Bg7 {[%emt 0:01:54]} 6. Bb2 {[%emt 0:00:07]} dxc4 {[%emt 0:00:34]} 7. bxc4 {[%emt 0:01:17]} O-O {[%emt 0:04:14]} 8. O-O {[%emt 0:00:47]} Bg4 {[%emt 0:06:33] A11: English Opening: 1...c6.} 9. d3 {[%emt 0:03:39]} Bxf3 {[%emt 0:00:35]} 10. Bxf3 {[%emt 0:00:40] [#]} Nbd7 $146 {[%emt 0:04:19] White has an edge.} ({Predecessor:} 10... Qc7 11. Nc3 e5 12. Rb1 Nbd7 13. Ba3 Rfe8 14. Qb3 b6 15. Rfd1 Rac8 16. Bg2 Bf8 17. Bxf8 Kxf8 {0-1 Isembaev,B (1991)-Gorovenko,D (1787) Astrakhan op 2013 (7)}) 11. Nd2 {[%emt 0:04:18]} Qc7 {[%emt 0:02:59]} 12. Qc2 {[%emt 0:05:29]} e5 {[%emt 0:06:57]} 13. Rab1 {[%emt 0:10:51]} Rfe8 {[%emt 0:02:56]} 14. c5 {[%emt 0:06:19]} Bf8 {[%emt 0:08:14]} 15. d4 {[%emt 0:04:53]} exd4 {[%emt 0:03:42]} 16. Bxd4 {[%emt 0:00:21]} Rab8 {[%emt 0:09:05]} 17. e3 {[%emt 0:03:31]} Rec8 {[%emt 0:05:48]} 18. Rfd1 {[%emt 0:06:41] White has more active pieces.} Ne5 {[%emt 0:04:38]} 19. Bg2 {[%emt 0:00:53]} Qe7 {[%emt 0:01:01]} 20. Rb3 {[%emt 0:10:35]} Nfd7 {[%emt 0:06:25]} (20... Ned7 $16) 21. Ne4 $18 {[%emt 0:06:31]} Rd8 {[%emt 0:04:52]} 22. h3 {[%emt 0:04:55] aiming for f4.} f5 {[%emt 0:05:18]} (22... b5 $142 23. cxb6 Nxb6) 23. Nd6 {[%emt 0:03:09]} b6 {[%emt 0:01:58]} 24. f4 {[%emt 0:04:03]} (24. Bxc6 $142 bxc5 25. Qc4+ Kg7 26. Bc3 (26. Rxb8 Nxb8 27. Nxf5+ gxf5 $16)) 24... Nf7 {[%emt 0:02:59]} 25. Nxf7 {[%emt 0:02:26]} ({Only move:} 25. Bxc6 $18 {And now Bd5 would win.} Nxc5 26. Bxc5 Nxd6 27. Bb4 (27. Bd5+ Kh8 $16)) 25... Qxf7 {[%emt 0:00:45]} 26. cxb6 {[%emt 0:01:25]} axb6 {[%emt 0:00:48]} (26... Nxb6 $16 27. Bxc6 (27. Qxc6 Bg7 $16) 27... Rbc8) 27. Qxc6 {[%emt 0:02:12] Strongly threatening Bd5.} ({Don't do} 27. Bxc6 Rbc8 28. Rc3 (28. Bxb6 Nxb6 29. Rxb6 Qa7 $18) 28... Bc5) 27... Nc5 {[%emt 0:11:00]} 28. Rxb6 {[%emt 0:03:25][%cal Bb3b6,Bb6b8,Bb8f8][%mdl 32]} Rd6 $2 {[%emt 0:00:00]} (28... Rxb6 29. Qxb6 Ne6) 29. Rxb8 {[%emt 0:00:13] White is clearly winning.} Rxc6 {[%emt 0:00:00]} 30. Bxc6 {[%emt 0:00:15] A strong pair of Bishops.} Qc4 {[%emt 0:00:00] [#]} 31. Bd5+ $1 {[%emt 0:04:46][%mdl 512]} Qxd5 {[%emt 0:00:00] [#]} 32. Rxf8+ $1 {[%emt 0:00:02][%mdl 33344] Remove Defender.   Weighted Error Value: White=0.27 (precise) /Black=0.37. Loss on time!?} 1-0

[Event "13th Rheinland-Pfalz-Open 2023"]
[Site "Neuwied-Engers"]
[Date "2023.06.08"]
[Round "2.9"]
[White "Zerfass, Otfried"]
[Black "Ollenberger, Roland"]
[Result "0-1"]
[Annotator "TA"]
[ECO "C11"]
[WhiteElo "1888"]
[BlackElo "2280"]
[PlyCount "48"]
[EventDate "2023.01.12"]
[EventType "swiss"]
[EventCountry "GER"]
[SourceTitle "playchess.com"]
[Source "ChessBase"]
[SourceQuality "1"]
[TimeControl "40/5400+30:1800+30"]

{[%evp 12,48,0,-45,-65,-47,-47,-47,-47,-47,-47,-57,-39,-57,-50,-52,-20,-29,-18,-33,-33,-45,-41,-64,-53,-242,-243,-272,-269,-369,-343,-403,-377,-408,-401,-393,-408,-653,-664]} 1. e4 {[%emt 0:00:01]} c5 {[%emt 0:00:10]} 2. Nc3 {[%emt 0:00:07]} Nc6 {[%emt 0:00:09]} 3. f4 {[%emt 0:00:07]} e6 {[%emt 0:00:30]} 4. Nf3 {[%emt 0:00:08]} d5 {[%emt 0:00:09]} 5. Bb5 {[%emt 0:00:57]} Nf6 {[%emt 0:00:37]} 6. e5 {[%emt 0:02:22]} Nd7 {[%emt 0:00:59]} 7. d4 {[%emt 0:00:36]} a6 {[%emt 0:05:09] C11: French: Classical System: 4 e5 and 4 Bg5 dxe4.} 8. Bxc6 {[%emt 0:01:21]} bxc6 {[%emt 0:00:04][%cal Bb7c6,Bc6c5][%mdl 32]} 9. O-O {[%emt 0:01:25]} cxd4 {[%emt 0:02:16] Black is slightly better.} 10. Nxd4 {[%emt 0:00:22]} c5 {[%emt 0:00:28]} 11. Nf3 {[%emt 0:01:04][%cal Of4f5]} (11. Nc6 $2 Qc7 12. f5 Qxc6 $19) 11... g6 {[%emt 0:04:17] [#]} 12. Kh1 $146 {[%emt 0:16:52]} ({Predecessor:} 12. Bd2 Be7 13. Qe1 Bb7 14. Na4 a5 15. f5 gxf5 16. Qg3 Qc7 17. Qg7 Rf8 18. Qxh7 {0-1 Guenther,R (1587)-Byrne,M (2238) RUS RCCA25/pr03 email 2018}) 12... Qb6 {[%emt 0:08:35]} 13. b3 {[%emt 0:02:20]} Bg7 {[%emt 0:00:47]} 14. Na4 {[%emt 0:01:17]} Qc6 {[%emt 0:00:31]} 15. Qe1 {[%emt 0:03:12]} Bb7 {[%emt 0:03:34]} 16. Ba3 {[%emt 0:06:23]} O-O {[%emt 0:05:14]} 17. h4 {[%emt 0:02:43]} f6 {[%emt 0:06:05] Strongly threatening ...fxe5.} 18. exf6 {[%emt 0:03:08] [#] Loses the game.} (18. Qg3 $1 $15) 18... Rxf6 $19 {[%emt 0:00:18]} ({Weaker is} 18... Bxf6 19. c3 $17) 19. Bb2 {[%emt 0:01:40]} d4 {[%emt 0:01:27]} ({Not} 19... Rxf4 20. Bxg7 Kxg7 21. Ng5 Rxf1+ 22. Qxf1 $17) 20. Bc1 {[%emt 0:01:19]} Re8 {[%emt 0:03:30][%cal Oe6e5]} 21. Nb2 {[%emt 0:00:25] [#]} e5 $1 {[%emt 0:00:14][%cal Be6e5,Be5e4,Be4f3][%mdl 544]} 22. Nc4 {[%emt 0:00:38][%cal Rf4e5]} (22. Qg3 e4) 22... e4 {[%emt 0:00:27]} 23. Na5 {[%emt 0:00:30]} Qc8 {[%emt 0:00:22]} 24. Nxb7 {[%emt 0:00:40]} (24. Ng1 $142) 24... exf3 {[%emt 0:00:39][%mdl 64] Discovered Attack.   Weighted Error Value: White=0.52/Black=0.05 (flawless)} 0-1

[Event "13th Rheinland-Pfalz-Open 2023"]
[Site "Neuwied-Engers"]
[Date "2023.06.08"]
[Round "2.10"]
[White "Ronge, Tim"]
[Black "Bosma, Achim"]
[Result "1-0"]
[Annotator "TA"]
[ECO "C40"]
[WhiteElo "2266"]
[BlackElo "1873"]
[PlyCount "43"]
[EventDate "2023.01.12"]
[EventType "swiss"]
[EventCountry "GER"]
[SourceTitle "playchess.com"]
[Source "ChessBase"]
[SourceQuality "1"]
[TimeControl "40/5400+30:1800+30"]

{[%evp 9,43,90,161,159,166,156,169,134,172,194,185,187,180,181,176,184,196,171,258,252,333,324,326,322,301,308,280,282,352,322,330,292,323,323,392,405]} 1. e4 {[%emt 0:00:04]} e5 {[%emt 0:00:18]} 2. Nf3 {[%emt 0:00:08]} d5 {[%emt 0:00:07]} 3. exd5 {[%emt 0:02:00]} Bd6 {[%emt 0:00:10]} 4. d4 {[%emt 0:02:53]} exd4 {[%emt 0:02:56]} 5. Qxd4 {[%emt 0:00:40] [#]} Qf6 $146 {[%emt 0:01:36]} (5... Nf6 $16 {keeps fighting.}) ({Predecessor:} 5... Nf6 6. Bd3 O-O 7. O-O Re8 8. Bg5 Nbd7 9. Qh4 h6 10. Bxh6 Nh7 11. Bxh7+ Kxh7 12. Bg5+ {1-0 Schaefer,M (1897)-Hierl,J (1363) GER-ch Net blitz qual2 2020 (3)}) 6. Nc3 $18 {[%emt 0:04:49] C40: Latvian and Elephant Gambits.} Qxd4 {[%emt 0:03:00]} 7. Nxd4 {[%emt 0:01:38]} a6 {[%emt 0:00:18] Against Ndb5} 8. Be2 {[%emt 0:06:05] White is clearly better.} Bb4 {[%emt 0:00:56]} 9. Bf4 {[%emt 0:01:55]} Nf6 {[%emt 0:02:07]} 10. Bf3 {[%emt 0:00:11]} ({Don't take} 10. Bxc7 Nxd5 $16) 10... Bd6 {[%emt 0:04:22]} 11. Bxd6 {[%emt 0:03:22]} cxd6 {[%emt 0:00:11]} 12. O-O-O {[%emt 0:00:08]} O-O {[%emt 0:00:17]} 13. Rhe1 {[%emt 0:00:34]} Nbd7 {[%emt 0:01:06]} (13... g6 {was necessary.} 14. h3 Nbd7) 14. Nf5 {[%emt 0:01:24]} Ne8 {[%emt 0:01:34]} 15. Ne4 {[%emt 0:01:00]} Ne5 {[%emt 0:03:08]} 16. Nexd6 {[%emt 0:02:30]} Nxf3 {[%emt 0:03:04]} 17. gxf3 {[%emt 0:00:34]} ({And not} 17. Rxe8 Rxe8 18. Nxe8 Bxf5 $11) 17... Bxf5 {[%emt 0:04:48]} 18. Nxf5 {[%emt 0:00:05][%cal Bd6f5,Bf5g3,Bg3e4][%mdl 32]} Nf6 {[%emt 0:00:39]} 19. Re7 {[%emt 0:01:41]} g6 {[%emt 0:02:18]} 20. Ng3 {[%emt 0:01:32]} b5 {[%emt 0:01:06]} 21. Ne4 {[%emt 0:00:45]} Nh5 {[%emt 0:01:05]} 22. d6 {[%emt 0:00:52] Weighted Error Value: White=0.11 (very precise) /Black=0.28 (precise)} 1-0